fUST/lending_fUST_20250622
["ID","MTS","AMOUNT","RATE_DAILY","PERIOD"]
[366857770,1750521811289,200.0,0.00024317,120]
[366857771,1750521856706,-4306.39911449,0.00024,60]
[366857772,1750521856735,-16277.33192078,0.00024,30]
[366857773,1750521856884,-1000.0,0.000248,60]
[366857774,1750521856916,-236.81,0.000248,31]
[366857775,1750521856949,-236.81,0.000248,31]
[366857776,1750521856980,-236.81,0.000248,31]
[366857777,1750521857011,-236.81,0.000248,31]
[366857778,1750521857043,-236.81,0.000248,31]
[366857779,1750521857072,-236.81,0.000248,31]
[366857780,1750521857106,-236.81,0.000248,31]
[366857781,1750521857137,-236.81,0.000248,31]
[366857782,1750521857168,-236.81,0.000248,31]
[366857783,1750521857199,-236.81,0.000248,31]
[366857784,1750521857231,-236.81,0.000248,31]
[366857785,1750521857261,-236.81,0.000248,31]
[366857786,1750521857293,-236.81,0.000248,31]
[366857787,1750521857324,-236.81,0.000248,31]
[366857788,1750521857355,-236.81,0.000248,31]
[366857789,1750521857387,-236.81,0.000248,31]
[366857790,1750521857415,-200.0,0.00024931,120]
[366857791,1750521857450,-152.0,0.00025,120]
[366857792,1750521857475,-203.5490439,0.00025,120]
[366857793,1750521857503,-262.26042249,0.00025068,120]
[366857794,1750521857529,-507.64821762,0.00025102,60]
[366857795,1750521857555,-200.0,0.000252,120]
[366857796,1750521857586,-236.81,0.000252,31]
[366857797,1750521857620,-236.81,0.000252,31]
[366857798,1750521857651,-236.81,0.000252,31]
[366857799,1750521857682,-236.81,0.000252,31]
[366857800,1750521857714,-236.81,0.000252,31]
[366857801,1750521857744,-236.81,0.000252,31]
[366857802,1750521857776,-236.81,0.000252,31]
[366857803,1750521857806,-236.81,0.000252,31]
[366857804,1750521857835,-236.81,0.000252,31]
[366857805,1750521857865,-236.81,0.000252,31]
[366857806,1750521857899,-236.81,0.000252,31]
[366857807,1750521857928,-236.81,0.000252,31]
[366857808,1750521857958,-236.81,0.000252,31]
[366857809,1750521857988,-236.81,0.000252,31]
[366857810,1750521858020,-236.81,0.000252,31]
[366857811,1750521858050,-236.81,0.000252,31]
[366857812,1750521858081,-236.81,0.000252,31]
[366857813,1750521858111,-236.81,0.000252,31]
[366857814,1750521858142,-236.81,0.000252,31]
[366857815,1750521858172,-236.81,0.000252,31]
[366857816,1750521858295,-236.81,0.000252,31]
[366857817,1750521858325,-236.81,0.000252,31]
[366857818,1750521858355,-236.81,0.000252,31]
[366857819,1750521858384,-236.81,0.000252,31]
[366857820,1750521858409,-230.10342898,0.0002523,30]
[366857821,1750521858451,-236.81,0.000257,31]
[366857822,1750521858481,-236.81,0.000257,31]
[366857823,1750521858511,-236.81,0.000257,31]
[366857824,1750521858541,-236.81,0.000257,31]
[366857825,1750521858573,-236.81,0.000257,31]
[366857826,1750521858604,-236.81,0.000257,31]
[366857827,1750521858638,-236.81,0.000257,31]
[366857828,1750521858672,-236.81,0.000257,31]
[366857829,1750521858702,-236.81,0.000257,31]
[366857830,1750521858732,-236.81,0.000257,31]
[366857831,1750521858763,-236.81,0.000257,31]
[366857832,1750521858796,-236.81,0.000257,31]
[366857833,1750521858828,-236.81,0.000257,31]
[366857834,1750521858860,-236.81,0.000257,31]
[366857835,1750521858891,-236.81,0.000257,31]
[366857836,1750521858921,-236.81,0.000257,31]
[366857837,1750521858951,-236.81,0.000257,31]
[366857838,1750521858980,-236.81,0.000257,31]
[366857839,1750521859009,-236.81,0.000257,31]
[366857840,1750521859039,-236.81,0.000257,31]
[366857841,1750521859069,-236.81,0.000257,31]
[366857842,1750521859100,-236.81,0.000257,31]
[366857843,1750521859132,-236.81,0.000257,31]
[366857844,1750521859163,-236.81,0.000257,31]
[366857845,1750521859190,-400.0,0.00026,120]
[366857846,1750521859222,-236.81,0.000261,31]
[366857847,1750521859252,-236.81,0.000261,31]
[366857848,1750521859284,-236.81,0.000261,31]
[366857849,1750521859315,-236.81,0.000261,31]
[366857850,1750521859345,-236.81,0.000261,31]
[366857851,1750521859375,-236.81,0.000261,31]
[366857852,1750521859406,-236.81,0.000261,31]
[366857853,1750521859438,-236.81,0.000261,31]
[366857854,1750521859472,-236.81,0.000261,31]
[366857855,1750521859504,-236.81,0.000261,31]
[366857856,1750521859537,-236.81,0.000261,31]
[366857857,1750521859569,-236.81,0.000261,31]
[366857858,1750521859599,-236.81,0.000261,31]
[366857859,1750521859630,-236.81,0.000261,31]
[366857860,1750521859661,-236.81,0.000261,31]
[366857861,1750521859691,-236.81,0.000261,31]
[366857862,1750521859721,-236.81,0.000261,31]
[366857863,1750521859751,-236.81,0.000261,31]
[366857864,1750521859782,-236.81,0.000261,31]
[366857865,1750521859812,-236.81,0.000261,31]
[366857866,1750521859842,-236.81,0.000261,31]
[366857867,1750521859874,-236.81,0.000261,31]
[366857868,1750521859903,-236.81,0.000261,31]
[366857869,1750521859933,-236.81,0.000261,31]
[366857870,1750521859958,-1333.0,0.00026137,120]
[366857871,1750521859984,-200.0,0.00026307,120]
[366857872,1750521860016,-236.81,0.000266,31]
[366857873,1750521860047,-236.81,0.000266,31]
[366857874,1750521860077,-236.81,0.000266,31]
[366857875,1750521860107,-236.81,0.000266,31]
[366857876,1750521860136,-236.81,0.000266,31]
[366857877,1750521860247,-236.81,0.000266,31]
[366857878,1750521860279,-236.81,0.000266,31]
[366857879,1750521860307,-236.81,0.000266,31]
[366857880,1750521860336,-236.81,0.000266,31]
[366857881,1750521860365,-236.81,0.000266,31]
[366857882,1750521860395,-236.81,0.000266,31]
[366857883,1750521860424,-236.81,0.000266,31]
[366857884,1750521860449,-1111.73786,0.00027,120]
[366857885,1750521860474,-408.06908213,0.00027397,120]
[366857886,1750521860503,-2947.068022,0.00027397,120]
[366857887,1750521860529,-822.72453656,0.000275,30]
[366857888,1750521860556,-1111.73786,0.000277,120]
[366857889,1750521860582,-200.0,0.00027853,120]
[366857890,1750521860607,-200.0,0.00027939,30]
[366857891,1750521860632,-200.0,0.00027939,30]
[366857892,1750521860658,-200.0,0.00027939,30]
[366857893,1750521860684,-500.0,0.00028,120]
[366857894,1750521860710,-1111.73786,0.000284,120]
[366857895,1750521860735,-209.6249,0.00029,120]
[366857896,1750521860760,-29042.39205209,0.00029,120]
[366857897,1750521860788,-157.748237,0.00029,60]
[366857898,1750521860813,-1111.73786,0.000291,120]
[366857899,1750521860843,-1111.73786,0.000298,120]
[366857900,1750521860873,-1400.0,0.0003,120]
[366857901,1750521860897,-200.0,0.0003,120]
[366857902,1750521860922,-1909.48,0.00030384,30]
[366857903,1750521860949,-1111.73786,0.000305,120]
[366857904,1750521860974,-1333.0,0.00030575,120]
[366857905,1750521861001,-209.6249,0.000309,120]
[366857906,1750521861026,-1111.73786,0.000312,120]
[366857907,1750521861052,-1111.73786,0.000319,120]
[366857908,1750521861077,-2947.068022,0.00031963,120]
[366857909,1750521861113,-600.0,0.00032,120]
[366857910,1750521861148,-1400.0,0.00032,120]
[366857911,1750521861184,-1333.0,0.00032055,30]
[366857912,1750521861219,-1111.73793,0.000326,120]
[366857913,1750521861256,-209.6249,0.000328,120]
[366857914,1750521861297,-215.55,0.00032877,120]
[366857915,1750521861331,-611.07,0.00032949,47]
[366857916,1750521861361,-1000.0,0.00033,120]
[366857917,1750521861396,-444.78566844,0.00033,30]
[366857918,1750521861432,-3818.96,0.00033146,30]
[366857919,1750521861468,-611.07,0.00033149,54]
[366857920,1750521861497,-500.0,0.0003315,60]
[366857921,1750521861533,-611.07,0.00033349,78]
[366857922,1750521861565,-611.07,0.00033549,63]
[366857923,1750521861600,-611.07,0.00033749,71]
[366857924,1750521861631,-611.07,0.00033949,57]
[366857925,1750521861662,-12253.08110124,0.00034,60]
[366857926,1750521861694,-1400.0,0.00034,120]
[366857927,1750521861726,-611.07,0.00034149,90]
[366857928,1750521861756,-500.0,0.00034246,60]
[366857929,1750521861790,-611.07,0.00034349,31]
[366857930,1750521861821,-611.07,0.00034549,78]
[366857931,1750521861852,-99658.10963853,0.00034581,120]
[366857932,1750521861886,-611.07,0.00034749,59]
[366857933,1750521861917,-200.0,0.00034936,120]
[366857934,1750521861947,-611.07,0.00034949,87]
[366857935,1750521861976,-210.75758638,0.00035,30]
[366857936,1750521862006,-24000.0,0.00035,120]
[366857937,1750521862036,-200.0,0.00035,120]
[366857938,1750521862066,-3885.92324739,0.00035,120]
[366857939,1750521862095,-300.0,0.00035,120]
[366857940,1750521862238,-1333.0,0.00035014,90]
[366857941,1750521862264,-611.07,0.00035149,58]
[366857942,1750521862288,-500.0,0.00035342,60]
[366857943,1750521862313,-611.07,0.00035349,55]
[366857944,1750521862338,-611.07,0.00035549,33]
[366857945,1750521862363,-208.0,0.0003561,30]
[366857946,1750521862389,-151.0,0.00035615,30]
[366857947,1750521862416,-300.0,0.00035615,30]
[366857948,1750521862443,-500.0,0.00035615,30]
[366857949,1750521862469,-200.0,0.00035616,120]
[366857950,1750521862495,-200.0,0.00035616,120]
[366857951,1750521862521,-200.0,0.00035616,120]
[366857952,1750521862547,-611.07,0.00035749,76]
[366857953,1750521862572,-152.0,0.000358,120]
[366857954,1750521862598,-5728.44,0.00035908,30]
[366857955,1750521862626,-611.07,0.00035949,81]
[366857956,1750521862651,-199.99999901,0.00036,30]
[366857957,1750521862678,-1400.0,0.00036,120]
[366857958,1750521862704,-611.07,0.00036149,64]
[366857959,1750521862729,-611.07,0.00036349,63]
[366857960,1750521862754,-500.0,0.00036438,60]
[366857961,1750521862783,-965.19225146,0.00036493,120]
[366857962,1750521862808,-2947.068022,0.0003653,120]
[366857963,1750521862834,-611.07,0.00036549,74]
[366857964,1750521862860,-60000.0,0.000367,40]
[366857965,1750521862885,-611.07,0.00036749,86]
[366857966,1750521862910,-611.07,0.00036949,68]
[366857967,1750521862936,-611.07,0.00037149,81]
[366857968,1750521862961,-611.07,0.00037349,54]
[366857969,1750521862987,-161.0,0.00037397,40]
[366857970,1750521863014,-500.0,0.00037534,60]
[366857971,1750521863040,-611.07,0.00037549,84]
[366857972,1750521863066,-611.07,0.00037749,79]
[366857973,1750521863092,-611.07,0.00037949,39]
[366857974,1750521863119,-2000.0,0.00038,120]
[366857975,1750521863146,-611.07,0.00038149,70]
[366857976,1750521863172,-40000.0,0.00038151,50]
[366857977,1750521863200,-611.07,0.00038349,68]
[366857978,1750521863228,-8146.57,0.00038356,120]
[366857979,1750521863254,-611.07,0.00038549,120]
[366857980,1750521863280,-500.0,0.0003863,60]
[366857981,1750521863305,-7637.92,0.0003867,30]
[366857982,1750521863331,-611.07,0.00038749,120]
[366857983,1750521863357,-9517.51,0.0003888,30]
[366857984,1750521863384,-611.07,0.00038949,120]
[366857985,1750521863411,-611.07,0.00039149,120]
[366857986,1750521863439,-8146.57,0.00039178,120]
[366857987,1750521863466,-611.07,0.00039349,120]
[366857988,1750521863492,-376.55159335,0.00039452,120]
[366857989,1750521863519,-611.07,0.00039549,120]
[366857990,1750521863545,-500.0,0.00039726,60]
[366857991,1750521863573,-611.07,0.00039749,120]
[366857992,1750521863601,-611.07,0.00039949,120]
[366857993,1750521863627,-226.1076356,0.0004,30]
[366857994,1750521863653,-803.64306278,0.0004,30]
[366857995,1750521863679,-1000.0,0.0004,120]
[366857996,1750521863705,-2000.0,0.0004,120]
[366857997,1750521863732,-8146.57,0.0004,120]
[366857998,1750521863758,-155.0,0.0004,120]
[366857999,1750521863787,-90000.0,0.0004013,50]
[366858000,1750521863813,-611.07,0.00040149,120]
[366858001,1750521863840,-611.07,0.00040349,120]
[366858002,1750521863867,-611.07,0.00040549,120]
[366858003,1750521863893,-611.07,0.00040749,120]
[366858004,1750521863920,-8146.57,0.00040821,120]
[366858005,1750521863945,-500.0,0.00040822,60]
[366858006,1750521863970,-611.07,0.00040949,120]
[366858007,1750521863995,-152.0,0.00041041,31]
[366858008,1750521864644,523.9660634,0.00024,30]
[366858009,1750521864684,523.9660634,0.00029,120]
[366858010,1750521864738,523.9660634,0.0004,30]
[366858011,1750521865027,523.9660634,0.0004,120]
[366858012,1750521866383,165.0,0.00017151,3]
[366858013,1750521875902,-200.0,0.00033474,120]
[366858014,1750521875933,-2947.068022,0.00041096,120]
[366858015,1750521875958,-611.07,0.00041149,120]
[366858016,1750521875984,-611.07,0.00041349,120]
[366858017,1750521876009,-500.0,0.00041538,30]
[366858018,1750521876035,-611.07,0.00041549,120]
[366858019,1750521876062,-8146.57,0.00041643,120]
[366858020,1750521876088,-151.0,0.00041719,70]
[366858021,1750521876115,-300.0,0.00041719,70]
[366858022,1750521876143,-500.0,0.00041719,70]
[366858023,1750521876168,-611.07,0.00041749,120]
[366858024,1750521876195,-152.0,0.00041761,31]
[366858025,1750521876221,-151.0,0.00041859,60]
[366858026,1750521876249,-300.0,0.00041859,60]
[366858027,1750521876276,-500.0,0.00041859,60]
[366858028,1750521876302,-300.0,0.00041859,60]
[366858029,1750521876327,-500.0,0.00041918,60]
[366858030,1750521876354,-611.07,0.00041949,120]
[366858031,1750521876379,-50000.0,0.00042,30]
[366858032,1750521876408,-2000.0,0.00042,120]
[366858033,1750521876437,-611.07,0.00042149,120]
[366858034,1750521876464,-611.07,0.00042349,120]
[366858035,1750521876491,-1759.46308115,0.000424,120]
[366858036,1750521876519,-8146.57,0.00042465,120]
[366858037,1750521876547,-152.0,0.0004248,31]
[366858038,1750521876573,-611.07,0.00042549,120]
[366858039,1750521876599,-611.07,0.00042749,120]
[366858040,1750521876624,-50000.0,0.0004289,40]
[366858041,1750521876652,-611.07,0.00042949,120]
[366858042,1750521876681,-1454.5151727,0.00042958,120]
[366858043,1750521876707,-1636.68792644,0.00042998,30]
[366858044,1750521876736,-1000.0,0.00043,120]
[366858045,1750521876763,-1454.5151727,0.00043005,120]
[366858046,1750521876792,-1454.5151727,0.00043005,120]
[366858047,1750521876819,-418.9312388,0.00043014,60]
[366858048,1750521876847,-1454.5151727,0.00043108,120]
[366858049,1750521876876,-611.07,0.00043149,120]
[366858050,1750521876905,-60000.0,0.0004319,50]
[366858051,1750521876930,-152.0,0.000432,31]
[366858052,1750521876956,-151.0,0.00043287,83]
[366858053,1750521876981,-151.1347294,0.00043287,83]
[366858054,1750521877007,-300.0,0.00043287,83]
[366858055,1750521877035,-500.0,0.00043287,83]
[366858056,1750521877060,-300.0,0.00043287,83]
[366858057,1750521877086,-8146.57,0.00043287,120]
[366858058,1750521877112,-611.07,0.00043349,120]
[366858059,1750521877140,-159.0,0.00043452,85]
[366858060,1750521877165,-255.3795,0.00043474,120]
[366858061,1750521877191,-611.07,0.00043549,120]
[366858062,1750521877219,-151.0,0.00043723,120]
[366858063,1750521877246,-151.0,0.00043723,120]
[366858064,1750521877271,-151.0,0.00043723,120]
[366858065,1750521877297,-151.0,0.00043723,120]
[366858066,1750521877324,-500.0,0.00043723,120]
[366858067,1750521877351,-200.0,0.00043723,120]
[366858068,1750521877378,-300.0,0.00043723,120]
[366858069,1750521877407,-5000.0,0.00043723,120]
[366858070,1750521877434,-500.0,0.00043723,120]
[366858071,1750521877462,-300.0,0.00043723,120]
[366858072,1750521877490,-500.0,0.00043724,30]
[366858073,1750521877519,-500.0,0.00043724,30]
[366858074,1750521877546,-500.0,0.00043724,30]
[366858075,1750521877572,-200.0,0.00043724,120]
[366858076,1750521877599,-200.0,0.00043724,120]
[366858077,1750521877625,-200.0,0.00043724,120]
[366858078,1750521877654,-611.07,0.00043749,120]
[366858079,1750521877682,-611.07,0.00043949,120]
[366858080,1750521877777,-1000.0,0.00043999,120]
[366858081,1750521877824,-59105.0,0.00044,120]
[366858082,1750521877850,-4221.44344259,0.00044,120]
[366858083,1750521877877,-1000.0,0.00044,120]
[366858084,1750521877904,-499999.999999,0.00044,120]
[366858085,1750521877931,-8146.57,0.00044109,120]
[366858086,1750521877960,-611.07,0.00044149,120]
[366858087,1750521877989,-611.07,0.00044349,120]
[366858088,1750521878017,-1000.0,0.0004449,120]
[366858089,1750521878045,-200.0,0.0004452,120]
[366858090,1750521878072,-200.0,0.0004452,120]
[366858091,1750521878100,-200.0,0.0004452,120]
[366858092,1750521878128,-611.07,0.00044549,120]
[366858093,1750521878160,-611.95601966,0.00044749,120]
[366858094,1750521878188,-8146.57,0.00044931,120]
[366858095,1750521878216,-2498.23013029,0.00045,120]
[366858096,1750521878243,-718.28965433,0.00045,90]
[366858097,1750521878284,-151.0,0.00045,120]
[366858098,1750521878326,-151.0,0.00045,120]
[366858099,1750521878365,-202.0,0.00045,120]
[366858100,1750521878405,-202.0,0.00045,120]
[366858101,1750521878446,-150.0,0.00045,60]
[366858102,1750521878488,-1749.999999,0.00045,120]
[366858103,1750521878530,-166.9846103,0.0004537,120]
[366858104,1750521878573,-500.0,0.000455,120]
[366858105,1750521878616,-8146.57,0.00045753,120]
[366858106,1750521878660,-500.0,0.0004591,30]
[366858107,1750521878704,-1000.0,0.00046,120]
[366858108,1750521878746,-6435.004591,0.000464,120]
[366858109,1750521878790,-8146.57,0.00046575,120]
[366858110,1750521885927,1805.33,0.0003041,30]
[366858111,1750521886432,3610.65,0.00033175,30]
[366858112,1750521886747,5415.98,0.00035939,30]
[366858113,1750521887158,7221.3,0.00038704,30]
[366858114,1750521887548,9026.63,0.00041468,30]
[366858115,1750521887950,10831.95,0.00044233,30]
[366858116,1750521940275,-174.40675948,0.00020489,2]
[366858117,1750521940297,-50.30146685,0.00020589,2]
[366858118,1750522011781,709.2783557,0.00024657,120]
[366858119,1750522031086,-108.67004665,0.00020589,2]
[366858120,1750522031107,-194.35038888,0.00020942,2]
[366858121,1750522031129,-1406.67896518,0.00021169,2]
[366858122,1750522031150,-174.40675948,0.00021484,2]
[366858123,1750522031174,-174.40675948,0.00021526,2]
[366858124,1750522031197,-788.3229213,0.00021585,2]
[366858125,1750522035128,-418.65991679,0.00021526,2]
[366858126,1750522035151,-411.6770787,0.00021585,2]
[366858127,1750522035172,-300.0,0.00021585,2]
[366858128,1750522035194,-300.0,0.00021585,2]
[366858129,1750522035215,-193.065,0.00021587,2]
[366858130,1750522035238,-300.0,0.00021588,2]
[366858131,1750522035260,-219.94429793,0.00021589,2]
[366858132,1750522035283,-500.0,0.00021589,2]
[366858133,1750522035305,-280.94300738,0.00021589,2]
[366858134,1750522035329,-500.0,0.00021589,2]
[366858135,1750522035350,-222.26279254,0.00021589,2]
[366858136,1750522035374,-183.57912491,0.00021589,2]
[366858137,1750522035398,-500.0,0.00021589,2]
[366858138,1750522035423,-500.0,0.00021589,2]
[366858139,1750522035449,-500.0,0.00021589,2]
[366858140,1750522035471,-24900.0,0.0002159,2]
[366858141,1750522035493,-459.23523,0.00021626,2]
[366858142,1750522035524,-1543.56181953,0.000219,6]
[366858143,1750522035546,-189.03762074,0.00021981,2]
[366858144,1750522035568,-500.0,0.00021981,2]
[366858145,1750522035594,-723.96086062,0.00021981,2]
[366858146,1750522035615,-634.8333564,0.00021981,2]
[366858147,1750522035640,-723.96086062,0.00021981,2]
[366858148,1750522035669,-723.96086062,0.00021981,2]
[366858149,1750522035695,-723.96086062,0.00021981,2]
[366858150,1750522035720,-723.96086062,0.00021981,2]
[366858151,1750522035745,-723.96086062,0.00021981,2]
[366858152,1750522035770,-723.96086062,0.00021981,2]
[366858153,1750522035795,-723.96086062,0.00021981,2]
[366858154,1750522035820,-723.96086062,0.00021981,2]
[366858155,1750522035848,-749.29949075,0.00021981,2]
[366858156,1750522035873,-749.29949075,0.00021981,2]
[366858157,1750522035896,-749.29949075,0.00021981,2]
[366858158,1750522035921,-749.29949075,0.00021981,2]
[366858159,1750522035946,-749.29949075,0.00021981,2]
[366858160,1750522035972,-749.29949075,0.00021981,2]
[366858161,1750522035997,-749.29949075,0.00021981,2]
[366858162,1750522036023,-768.23782952,0.00021981,2]
[366858163,1750522036047,-768.23782952,0.00021981,2]
[366858164,1750522036072,-768.23782952,0.00021981,2]
[366858165,1750522036097,-768.23782952,0.00021981,2]
[366858166,1750522036122,-768.23782952,0.00021981,2]
[366858167,1750522036144,-2305.45,0.00021983,2]
[366858168,1750522036166,-2305.45,0.00021983,2]
[366858169,1750522036187,-165.0,0.00022,2]
[366858170,1750522036217,-1543.56181924,0.00022038,6]
[366858171,1750522036239,-979.61644844,0.00022121,2]
[366858172,1750522036269,-1543.56181924,0.00022176,6]
[366858173,1750522036292,-500.0,0.000222,2]
[366858174,1750522036312,-504.26417728,0.000222,2]
[366858175,1750522036332,-500.0,0.000222,2]
[366858176,1750522036353,-151.66722043,0.000222,2]
[366858177,1750522036375,-500.0,0.000222,2]
[366858178,1750522036397,-2305.45,0.00022312,2]
[366858179,1750522036429,-1543.56181924,0.00022314,7]
[366858180,1750522036452,-836.41202323,0.00022342,2]
[366858181,1750522036475,-230.10342898,0.00022342,2]
[366858182,1750522036498,-160.0,0.00022345,2]
[366858183,1750522036521,-213.55395994,0.00022345,2]
[366858184,1750522036544,-160.0,0.00022345,2]
[366858185,1750522036567,-846.23824438,0.00022358,2]
[366858186,1750522036589,-12549.17366507,0.00022358,2]
[366858187,1750522036611,-424.93363889,0.00022358,2]
[366858188,1750522036634,-822.95860299,0.00022401,2]
[366858189,1750522036658,-2305.45,0.00022418,2]
[366858190,1750522036691,-1543.56181924,0.00022452,7]
[366858191,1750522036723,-1543.56181924,0.0002259,7]
[366858192,1750522036747,-530.22708146,0.00022648,2]
[366858193,1750522036779,-1543.56181924,0.00022728,7]
[366858194,1750522036803,-262.71024817,0.00022748,2]
[366858195,1750522036827,-824.5513043,0.00022748,2]
[366858196,1750522036849,-1000.0,0.00022748,2]
[366858197,1750522036873,-3232.0,0.00022809,2]
[366858198,1750522036906,-1543.56181924,0.00022866,8]
[366858199,1750522036932,-3000.0,0.000229,2]
[366858200,1750522036955,-3000.0,0.0002291,2]
[366858201,1750522036979,-3000.0,0.0002292,2]
[366858202,1750522037003,-3000.0,0.0002293,2]
[366858203,1750522037119,-3000.0,0.0002294,2]
[366858204,1750522037144,-3000.0,0.0002295,2]
[366858205,1750522037168,-3000.0,0.0002296,2]
[366858206,1750522037192,-3000.0,0.0002297,2]
[366858207,1750522037215,-3000.0,0.0002298,2]
[366858208,1750522037237,-151.0,0.0002298,7]
[366858209,1750522037259,-151.0,0.0002298,7]
[366858210,1750522037281,-943.77425009,0.0002299,2]
[366858211,1750522040096,-500.0,0.00021981,2]
[366858212,1750522040122,-500.0,0.00021981,2]
[366858213,1750522040144,-418.65991673,0.00022043,2]
[366858214,1750522040166,-2056.22574991,0.0002299,2]
[366858215,1750522040188,-3.90277886,0.00022997,2]
[366858216,1750522180614,167.0,0.00017151,3]
[366858224,1750522231859,-2138.27132428,0.0002176,2]
[366858225,1750522231871,-2861.72867572,0.0002176,2]
[366858226,1750522231881,-14.16352482,0.0002198,2]
[366858227,1750522232071,-228.45637795,0.0002198,2]
[366858228,1750522232081,-175.869617,0.00022265,2]
[366858229,1750522232091,-563.95514409,0.00022342,2]
[366858230,1750522232104,-280.36940009,0.00022342,2]
[366858231,1750522232116,-1.9137002,0.00022342,2]
[366858232,1750522232126,-412.22575383,0.000229,8]
[366858233,1750522232138,-719.71958055,0.000229,8]
[366858234,1750522232148,-160.0,0.00022989,2]
[366858235,1750522232158,-1200.0,0.00022989,2]
[366858236,1750522232168,-241.316704,0.0002299,7]
[366858237,1750522232178,-241.316704,0.0002299,7]
[366858238,1750522232188,-300.0,0.00022996,2]
[366858239,1750522232198,-183.0,0.00022996,2]
[366858240,1750522232208,-2301.54722114,0.00022997,2]
[366858241,1750522232218,-3000.0,0.00023,2]
[366858242,1750522232231,-1131.9453341,0.00023003,8]
[366858243,1750522232242,-3000.0,0.0002301,2]
[366858244,1750522232252,-3000.0,0.0002302,2]
[366858245,1750522232262,-168.0,0.00023048,2]
[366858246,1750522232273,-2305.45,0.00023064,2]
[366858247,1750522232283,-1131.9453341,0.00023107,8]
[366858248,1750522232293,-530.22708145,0.00023125,2]
[366858249,1750522232303,-1131.9453341,0.0002321,8]
[366858250,1750522232313,-2305.45,0.00023259,2]
[366858251,1750522232323,-151.0,0.00023282,7]
[366858252,1750522232333,-151.0,0.00023282,7]
[366858253,1750522232343,-500.0,0.00023296,2]
[366858255,1750522232474,-219.113716,0.00023313,7]
[366858256,1750522232484,-1131.9453341,0.00023314,9]
[366858257,1750522232494,-151.0,0.00023417,7]
[366858258,1750522232504,-3777.19,0.00023417,2]
[366858259,1750522232513,-1131.9453341,0.00023417,9]
[366858260,1750522232523,-500.0,0.00023465,2]
[366858261,1750522232533,-294.38334948,0.00023465,2]
[366858262,1750522232543,-557.94152734,0.00023465,2]
[366858263,1750522232552,-557.94152734,0.00023465,2]
[366858264,1750522232562,-557.94152734,0.00023465,2]
[366858265,1750522232572,-557.94152734,0.00023465,2]
[366858266,1750522232583,-557.94152734,0.00023465,2]
[366858267,1750522232593,-557.94152734,0.00023465,2]
[366858268,1750522232603,-557.94152734,0.00023465,2]
[366858269,1750522232613,-560.73123497,0.00023465,2]
[366858270,1750522232623,-560.73123497,0.00023465,2]
[366858271,1750522232633,-560.73123497,0.00023465,2]
[366858272,1750522232645,-560.73123497,0.00023465,2]
[366858273,1750522232655,-560.73123497,0.00023465,2]
[366858274,1750522232664,-560.73123497,0.00023465,2]
[366858275,1750522232675,-560.73123497,0.00023465,2]
[366858276,1750522232685,-560.73123497,0.00023465,2]
[366858277,1750522232695,-560.73123497,0.00023465,2]